fUST/lending_fUST_20240620
["ID","MTS","AMOUNT","RATE_DAILY","PERIOD"]
[329911858,1718826651745,-500.0,0.00026301,5]
[329911859,1718826651754,-2712.03,0.00026301,5]
[329911860,1718826651767,-333.716017,0.00026301,2]
[329911861,1718826651777,-333.716024,0.00026301,2]
[329911862,1718826651787,-500.0,0.00026301,5]
[329911863,1718826651796,-1528.95,0.00026301,5]
[329911864,1718826651807,-1431.31,0.00026301,5]
[329911865,1718826651817,-599.8039268,0.00026301,5]
[329911866,1718826651826,-500.0,0.00026301,5]
[329911867,1718826651836,-500.0,0.00026301,5]
[329911868,1718826651845,-842.18,0.00026301,5]
[329911869,1718826651857,-500.0,0.00026301,5]
[329911870,1718826651868,-500.0,0.00026301,5]
[329911871,1718826651878,-151.0,0.00026301,2]
[329911872,1718826651887,-500.0,0.00026301,5]
[329911873,1718826651897,-549.53,0.00026301,5]
[329911874,1718826651906,-500.0,0.00026301,5]
[329911875,1718826651915,-558.6,0.00026301,5]
[329911876,1718826651924,-2502.22,0.00026301,5]
[329911877,1718826651934,-710.96,0.00026301,5]
[329911878,1718826651943,-606.96,0.00026301,5]
[329911879,1718826651953,-191.09847641,0.00026356,2]
[329911880,1718826651962,-191.09847641,0.00026402,2]
[329911881,1718826651972,-505.57786796,0.000265,10]
[329911882,1718826651981,-3000.0,0.000265,2]
[329911883,1718826652005,-3000.0,0.0002651,2]
[329911884,1718826652014,-3000.0,0.0002652,2]
[329911885,1718826652024,-3000.0,0.0002653,2]
[329911886,1718826652034,-3000.0,0.0002654,2]
[329911887,1718826652043,-3000.0,0.0002655,2]
[329911888,1718826652053,-3000.0,0.0002656,2]
[329911889,1718826652062,-191.09847641,0.00026564,2]
[329911890,1718826652072,-3000.0,0.0002657,2]
[329911891,1718826652081,-500.0,0.00026575,5]
[329911892,1718826652090,-1692.89,0.00026575,5]
[329911893,1718826652100,-500.0,0.00026575,5]
[329911894,1718826652109,-1503.73,0.00026575,5]
[329911895,1718826652121,-4449.6,0.00026575,5]
[329911896,1718826652130,-151.0,0.00026575,2]
[329911897,1718826652140,-500.0,0.00026575,5]
[329911898,1718826652149,-500.0,0.00026575,5]
[329911899,1718826652159,-764.96,0.00026575,5]
[329911900,1718826652168,-500.0,0.00026575,5]
[329911901,1718826652178,-653.25,0.00026575,5]
[329911902,1718826652187,-151.0,0.00026575,2]
[329911903,1718826652196,-500.0,0.00026575,5]
[329911904,1718826652206,-675.95,0.00026575,5]
[329911905,1718826652215,-500.0,0.00026575,5]
[329911906,1718826652225,-3004.14,0.00026575,5]
[329911907,1718826652235,-500.0,0.00026575,5]
[329911908,1718826652244,-6720.14,0.00026575,5]
[329911909,1718826652254,-500.0,0.00026575,5]
[329911910,1718826652263,-500.0,0.00026575,5]
[329911911,1718826652273,-1738.36,0.00026575,5]
[329911912,1718826652284,-500.0,0.00026575,5]
[329911913,1718826652293,-1329.59,0.00026575,5]
[329911914,1718826652303,-568.6,0.00026575,5]
[329911915,1718826652312,-500.0,0.00026575,5]
[329911916,1718826652322,-500.0,0.00026575,5]
[329911917,1718826652331,-500.0,0.00026575,5]
[329911918,1718826652341,-500.0,0.00026575,5]
[329911919,1718826652350,-500.0,0.00026575,5]
[329911920,1718826652360,-500.0,0.00026575,5]
[329911921,1718826652369,-3172.97,0.00026575,5]
[329911922,1718826652378,-650.79,0.00026575,5]
[329911923,1718826652388,-500.0,0.00026575,5]
[329911924,1718826652397,-1137.29,0.00026575,5]
[329911925,1718826652406,-752.28,0.00026575,5]
[329911926,1718826652415,-6888.14,0.00026575,5]
[329911927,1718826652425,-500.0,0.00026575,5]
[329911928,1718826652434,-500.0,0.00026575,5]
[329911929,1718826652444,-500.0,0.00026575,5]
[329911930,1718826652453,-11228.58,0.00026575,5]
[329911931,1718826652463,-1607.8,0.00026575,5]
[329911932,1718826652472,-500.0,0.00026575,5]
[329911933,1718826652481,-500.0,0.00026575,5]
[329911934,1718826652490,-500.0,0.00026575,5]
[329911935,1718826652499,-2280.78,0.00026575,5]
[329911936,1718826652509,-500.0,0.00026575,5]
[329911937,1718826652518,-2712.03,0.00026575,5]
[329911938,1718826652527,-500.0,0.00026575,5]
[329911939,1718826652537,-1528.95,0.00026575,5]
[329911940,1718826652545,-1431.31,0.00026575,5]
[329911941,1718826652554,-500.0,0.00026575,5]
[329911942,1718826652564,-500.0,0.00026575,5]
[329911943,1718826652573,-842.18,0.00026575,5]
[329911944,1718826652582,-500.0,0.00026575,5]
[329911945,1718826652592,-500.0,0.00026575,5]
[329911946,1718826652601,-500.0,0.00026575,5]
[329911947,1718826652611,-549.53,0.00026575,5]
[329911948,1718826652620,-500.0,0.00026575,5]
[329911949,1718826652629,-558.6,0.00026575,5]
[329911950,1718826652638,-2502.22,0.00026575,5]
[329911951,1718826652647,-710.96,0.00026575,5]
[329911952,1718826652656,-606.96,0.00026575,5]
[329911953,1718826652666,-191.09847641,0.00026577,2]
[329911954,1718826652675,-3000.0,0.0002658,2]
[329911955,1718826652685,-3000.0,0.0002659,2]
[329911956,1718826652694,-3000.0,0.000266,2]
[329911957,1718826652703,-363.67114624,0.00026604,2]
[329911958,1718826652712,-3000.0,0.0002661,2]
[329911959,1718826652721,-3000.0,0.0002662,2]
[329911960,1718826652730,-3000.0,0.0002663,2]
[329911961,1718826652739,-3000.0,0.0002664,2]
[329911962,1718826652748,-3000.0,0.0002665,2]
[329911963,1718826652758,-3000.0,0.0002666,2]
[329911964,1718826652769,-3000.0,0.0002667,2]
[329911965,1718826652780,-3000.0,0.0002668,2]
[329911966,1718826652789,-3000.0,0.0002669,2]
[329911967,1718826652797,-3000.0,0.000267,2]
[329911968,1718826652806,-3000.0,0.0002671,2]
[329911969,1718826652817,-3000.0,0.0002672,2]
[329911970,1718826652825,-3000.0,0.0002673,2]
[329911971,1718826652834,-3000.0,0.0002674,2]
[329911972,1718826652844,-3000.0,0.0002675,2]
[329911973,1718826652854,-3000.0,0.0002676,2]
[329911974,1718826652864,-3000.0,0.0002677,2]
[329911975,1718826652873,-191.09847641,0.00026775,2]
[329911976,1718826652882,-3000.0,0.0002678,2]
[329911977,1718826652891,-3000.0,0.0002679,2]
[329911978,1718826652900,-191.09847641,0.00026793,2]
[329911979,1718826652909,-150.80395486,0.00026794,2]
[329911980,1718826652923,-3000.0,0.000268,2]
[329911981,1718826652932,-3000.0,0.0002681,2]
[329911982,1718826652943,-3000.0,0.0002682,2]
[329911983,1718826652952,-3000.0,0.0002683,2]
[329911984,1718826652961,-3000.0,0.0002684,2]
[329911985,1718826652970,-500.0,0.00026849,5]
[329911986,1718826652979,-1692.89,0.00026849,5]
[329911987,1718826652988,-500.0,0.00026849,5]
[329911988,1718826652996,-1503.73,0.00026849,5]
[329911989,1718826653008,-4449.6,0.00026849,5]
[329911990,1718826653018,-362.22357731,0.00026849,5]
[329911991,1718826653027,-500.0,0.00026849,5]
[329911992,1718826653036,-764.96,0.00026849,5]
[329911993,1718826653044,-588.10745138,0.00026849,5]
[329911994,1718826653053,-653.25,0.00026849,5]
[329911995,1718826653062,-500.0,0.00026849,5]
[329911996,1718826653071,-675.95,0.00026849,5]
[329911997,1718826653080,-500.0,0.00026849,5]
[329911998,1718826653089,-3004.14,0.00026849,5]
[329911999,1718826653098,-500.0,0.00026849,5]
[329912000,1718826653106,-6720.14,0.00026849,5]
[329912001,1718826653115,-500.0,0.00026849,5]
[329912002,1718826653125,-500.0,0.00026849,5]
[329912003,1718826653134,-1738.36,0.00026849,5]
[329912004,1718826653143,-500.0,0.00026849,5]
[329912005,1718826653151,-1329.59,0.00026849,5]
[329912006,1718826653160,-568.6,0.00026849,5]
[329912007,1718826653169,-514.8664575,0.00026849,5]
[329912008,1718826653178,-500.0,0.00026849,5]
[329912009,1718826653187,-500.0,0.00026849,5]
[329912010,1718826653196,-500.0,0.00026849,5]
[329912011,1718826653205,-500.0,0.00026849,5]
[329912012,1718826653212,-500.0,0.00026849,5]
[329912013,1718826653220,-3172.97,0.00026849,5]
[329912014,1718826653228,-650.79,0.00026849,5]
[329912015,1718826653236,-500.0,0.00026849,5]
[329912016,1718826653244,-1137.29,0.00026849,5]
[329912017,1718826653253,-752.28,0.00026849,5]
[329912018,1718826653262,-6888.14,0.00026849,5]
[329912019,1718826653271,-500.0,0.00026849,5]
[329912020,1718826653280,-500.0,0.00026849,5]
[329912021,1718826653288,-500.0,0.00026849,5]
[329912022,1718826653298,-11228.58,0.00026849,5]
[329912023,1718826653307,-1607.8,0.00026849,5]
[329912024,1718826653316,-500.0,0.00026849,5]
[329912025,1718826653325,-500.0,0.00026849,5]
[329912026,1718826653334,-500.0,0.00026849,5]
[329912027,1718826653342,-2280.78,0.00026849,5]
[329912028,1718826653351,-2712.03,0.00026849,5]
[329912029,1718826653360,-500.0,0.00026849,5]
[329912030,1718826653369,-500.0,0.00026849,5]
[329912031,1718826653378,-1528.95,0.00026849,5]
[329912032,1718826653387,-1431.31,0.00026849,5]
[329912033,1718826653395,-500.0,0.00026849,5]
[329912034,1718826653403,-500.0,0.00026849,5]
[329912035,1718826653411,-842.18,0.00026849,5]
[329912036,1718826653420,-500.0,0.00026849,5]
[329912037,1718826653429,-500.0,0.00026849,5]
[329912038,1718826653437,-500.0,0.00026849,5]
[329912039,1718826653446,-549.53,0.00026849,5]
[329912040,1718826653456,-500.0,0.00026849,5]
[329912041,1718826653465,-558.6,0.00026849,5]
[329912042,1718826653475,-2502.22,0.00026849,5]
[329912043,1718826653484,-710.96,0.00026849,5]
[329912044,1718826653494,-606.96,0.00026849,5]
[329912045,1718826653503,-3000.0,0.0002685,2]
[329912046,1718826653512,-3000.0,0.0002686,2]
[329912047,1718826653521,-3000.0,0.0002687,2]
[329912048,1718826653531,-3000.0,0.0002688,2]
[329912049,1718826653541,-3000.0,0.0002689,2]
[329912050,1718826653550,-1500.0,0.000269,2]
[329912051,1718826653559,-1500.0,0.000269,2]
[329912052,1718826653568,-1500.0,0.000269,2]
[329912053,1718826653577,-1500.0,0.000269,2]
[329912054,1718826653586,-1500.0,0.000269,2]
[329912055,1718826653595,-1500.0,0.000269,2]
[329912056,1718826653603,-1500.0,0.000269,2]
[329912057,1718826653613,-1352.25,0.000269,2]
[329912058,1718826653623,-1500.0,0.000269,2]
[329912059,1718826653632,-1500.0,0.000269,2]
[329912060,1718826653642,-1500.0,0.000269,2]
[329912061,1718826653651,-3000.0,0.000269,2]
[329912062,1718826653661,-3000.0,0.0002691,2]
[329912063,1718826653670,-3000.0,0.0002692,2]
[329912064,1718826653679,-3000.0,0.0002693,2]
[329912065,1718826653688,-3000.0,0.0002694,2]
[329912066,1718826653697,-191.09847641,0.00026945,2]
[329912067,1718826653706,-3000.0,0.0002695,2]
[329912068,1718826653715,-5769.947725,0.0002696,2]
[329912069,1718826653725,-363.67114624,0.00027117,2]
[329912070,1718826653817,-500.0,0.00027123,5]
[329912071,1718826653827,-1692.89,0.00027123,5]
[329912072,1718826653836,-500.0,0.00027123,5]
[329912073,1718826653846,-1503.73,0.00027123,5]
[329912074,1718826653857,-4449.6,0.00027123,5]
[329912075,1718826653868,-500.0,0.00027123,5]
[329912076,1718826653878,-764.96,0.00027123,5]
[329912077,1718826653887,-653.25,0.00027123,5]
[329912078,1718826653897,-480.19594482,0.00027123,5]
[329912079,1718826653906,-675.95,0.00027123,5]
[329912080,1718826653916,-500.0,0.00027123,5]
[329912081,1718826653925,-3004.14,0.00027123,5]
[329912082,1718826653935,-500.0,0.00027123,5]
[329912083,1718826653945,-6720.14,0.00027123,5]
[329912084,1718826653955,-500.0,0.00027123,5]
[329912085,1718826653964,-500.0,0.00027123,5]
[329912086,1718826653973,-1738.36,0.00027123,5]
[329912087,1718826653982,-500.0,0.00027123,5]
[329912088,1718826653991,-1329.59,0.00027123,5]
[329912089,1718826654000,-568.6,0.00027123,5]
[329912090,1718826654011,-500.0,0.00027123,5]
[329912091,1718826654020,-500.0,0.00027123,5]
[329912092,1718826654030,-500.0,0.00027123,5]
[329912093,1718826654039,-500.0,0.00027123,5]
[329912094,1718826654049,-500.0,0.00027123,5]
[329912095,1718826654059,-3172.97,0.00027123,5]
[329912096,1718826654068,-650.79,0.00027123,5]
[329912097,1718826654077,-1137.29,0.00027123,5]
[329912098,1718826654086,-500.0,0.00027123,5]
[329912099,1718826654095,-752.28,0.00027123,5]
[329912100,1718826654104,-6888.14,0.00027123,5]
[329912101,1718826654113,-500.0,0.00027123,5]
[329912102,1718826654124,-500.0,0.00027123,5]
[329912103,1718826654134,-500.0,0.00027123,5]
[329912104,1718826654143,-11228.58,0.00027123,5]
[329912105,1718826654153,-1607.8,0.00027123,5]
[329912106,1718826654162,-500.0,0.00027123,5]
[329912107,1718826654171,-500.0,0.00027123,5]
[329912108,1718826654180,-500.0,0.00027123,5]
[329912109,1718826654189,-2280.78,0.00027123,5]
[329912110,1718826654198,-2712.03,0.00027123,5]
[329912111,1718826654208,-500.0,0.00027123,5]
[329912112,1718826654217,-500.0,0.00027123,5]
[329912113,1718826654226,-1528.95,0.00027123,5]
[329912114,1718826654235,-1431.31,0.00027123,5]
[329912115,1718826654245,-500.0,0.00027123,5]
[329912116,1718826654254,-500.0,0.00027123,5]
[329912117,1718826654263,-842.18,0.00027123,5]
[329912118,1718826654272,-500.0,0.00027123,5]
[329912119,1718826654281,-500.0,0.00027123,5]
[329912120,1718826654290,-500.0,0.00027123,5]
[329912121,1718826654299,-549.53,0.00027123,5]
[329912122,1718826654308,-500.0,0.00027123,5]
[329912123,1718826654317,-558.6,0.00027123,5]
[329912124,1718826654326,-2502.22,0.00027123,5]
[329912125,1718826654335,-710.96,0.00027123,5]
[329912126,1718826654344,-606.96,0.00027123,5]
[329912127,1718826654353,-185.23427495,0.0002716,2]
[329912128,1718826654362,-25128.981195,0.0002716,120]
[329912129,1718826654371,-1000.0,0.0002716,120]
[329912130,1718826654380,-1000.0,0.0002716,120]
[329912131,1718826654389,-289.9,0.0002716,120]
[329912132,1718826654399,-359.22863442,0.0002716,30]
[329912133,1718826654408,-160.0,0.0002716,30]
[329912134,1718826654417,-14451.69114251,0.0002716,2]
[329912135,1718826654427,-355.62407946,0.0002716,2]
[329912136,1718826654436,-30665.5792823,0.0002716,2]
[329912137,1718826654536,-26707.23664501,0.0002716,2]
[329912138,1718826654548,-1409.96,0.0002716,2]
[329912139,1718826654559,-525.4495035,0.0002716,2]
[329912140,1718826710000,150.80395486,0.0002207,120]
[329912141,1718826720828,177.38616281,9.999e-05,2]
[329912142,1718826720853,343.8157795,9.999e-05,2]
[329912144,1718827515503,411.3023543,9.999e-05,2]
[329912145,1718827515533,109.89958801,9.999e-05,2]
[329912147,1718827642111,-268.58867592,0.00016774,2]
[329912148,1718827644118,-501.21180249,0.00016774,2]
[329912149,1718827684068,142.40276629,9.999e-05,2]
[329912150,1718827684096,12.41145664,9.999e-05,2]
[329912151,1718827736937,-424.57495036,0.00015,2]
[329912152,1718827736998,-424.57495036,0.00015,2]
[329912153,1718827764102,-199.5249207,0.00015,2]
[329912207,1718827832481,-521.20194231,0.00016771,2]
[329912209,1718827832491,-1102.12443366,0.00016772,2]
[329912211,1718827832500,-209.0,0.00016773,2]
[329912213,1718827832510,-1326.73841652,0.00016774,2]
[329912215,1718827832523,-155.01085076,0.00016774,2]
[329912217,1718827832533,-155.01085076,0.00016774,2]
[329912219,1718827832542,-323.66188023,0.00016774,2]
[329912221,1718827832553,-3293.37687449,0.00016774,2]
[329912224,1718827832563,-539.59557086,0.00019,2]
[329912227,1718827832572,-450.679321,0.00021096,2]
[329912232,1718827832581,-377.022526,0.00022066,2]
[329912236,1718827832591,-482.39629157,0.00022382,2]
[329912238,1718827832600,-450.0,0.00022383,2]
[329912240,1718827832609,-24900.0,0.00022384,2]
[329912242,1718827832618,-2321.1923833,0.0002263,2]
[329912244,1718827832627,-150.81901718,0.00022731,30]
[329912246,1718827832636,-940.0,0.00023183,5]
[329912248,1718827832645,-153.0,0.00023188,2]
[329912250,1718827832654,-153.0,0.00023188,2]
[329912252,1718827832663,-153.0,0.00023188,2]
[329912254,1718827832673,-153.0,0.00023188,2]
[329912256,1718827832682,-153.0,0.00023188,2]
[329912258,1718827832693,-153.0,0.00023188,2]
[329912260,1718827832702,-153.0,0.00023188,2]
[329912262,1718827832712,-153.0,0.00023188,2]
[329912264,1718827832722,-153.0,0.00023188,2]
[329912265,1718827832731,-153.0,0.00023188,2]
[329912267,1718827832741,-153.0,0.00023188,2]
[329912268,1718827832750,-153.0,0.00023188,2]
[329912269,1718827832759,-153.0,0.00023188,2]
[329912270,1718827832768,-153.0,0.00023188,2]
[329912271,1718827832779,-153.0,0.00023188,2]
[329912273,1718827832788,-150.81901718,0.00023194,7]
[329912275,1718827832797,-153.0,0.00023411,2]
[329912277,1718827832806,-153.0,0.00023411,2]
[329912279,1718827832815,-153.0,0.00023411,2]
[329912281,1718827832824,-153.0,0.00023411,2]
[329912283,1718827832833,-153.0,0.00023411,2]
[329912285,1718827832842,-153.0,0.00023411,2]
[329912287,1718827832851,-153.0,0.00023411,2]
[329912289,1718827832860,-153.0,0.00023411,2]
[329912291,1718827832870,-153.0,0.00023411,2]
[329912293,1718827832879,-153.0,0.00023411,2]
[329912295,1718827832889,-150.81901718,0.00023668,4]
[329912297,1718827832898,-150.81901718,0.00024151,2]
[329912298,1718827832909,-172.67317286,0.000244,3]
[329912300,1718827832919,-393.64095412,0.00024557,2]
[329912302,1718827832929,-4040.05601587,0.00024654,2]
[329912304,1718827832939,-411.83140751,0.00024655,2]
[329912306,1718827832948,-1538.74037477,0.00024656,2]
[329912308,1718827832957,-7670.13123804,0.00024656,2]
[329912311,1718827832970,-1332.28760033,0.00024656,2]
[329912313,1718827832981,-1390.0,0.00024656,2]
[329912315,1718827832998,-315.71,0.00024656,2]
[329912421,1718827838330,-593.41672076,0.00024656,2]
[329912423,1718827838347,-23288.77322588,0.00024656,2]
[329912425,1718827838356,-2232.19463402,0.00024657,15]
[329912439,1718827838477,-500.0,0.00024657,5]
[329912441,1718827838487,-507.28690409,0.00024657,2]
[329912444,1718827838497,-500.0,0.00024657,5]
[329912446,1718827838506,-502.18712384,0.00024657,5]
[329912448,1718827838515,-500.0,0.00024657,5]
[329912450,1718827838526,-500.0,0.00024657,5]
[329912452,1718827838536,-500.0,0.00024657,5]
[329912454,1718827838546,-623.84762386,0.00024657,5]
[329912455,1718827838555,-500.0,0.00024657,5]
[329912457,1718827838565,-500.0,0.00024657,5]
[329912460,1718827838575,-500.0,0.00024657,5]
[329912462,1718827838585,-183.63434371,0.00024657,5]
[329912464,1718827838595,-165.60595172,0.00024657,5]
[329912466,1718827838604,-500.92770484,0.00024657,5]
[329912468,1718827838613,-500.0,0.00024657,5]
[329912469,1718827838622,-500.0,0.00024657,5]
[329912471,1718827838631,-500.0,0.00024657,5]
[329912473,1718827838641,-500.0,0.00024657,5]
[329912475,1718827838651,-500.0,0.00024657,5]
[329912477,1718827838661,-500.0,0.00024657,5]
[329912479,1718827838671,-500.0,0.00024657,5]
[329912481,1718827838680,-602.78809942,0.00024657,5]
[329912483,1718827838690,-500.0,0.00024657,5]
[329912485,1718827838700,-500.0,0.00024657,5]
[329912487,1718827838711,-500.0,0.00024657,5]
[329912489,1718827838720,-525.38702796,0.00024657,5]
[329912491,1718827838729,-500.0,0.00024657,5]
[329912492,1718827838738,-577.66149049,0.00024657,5]
[329912493,1718827838747,-166.96064672,0.00024657,5]
[329912494,1718827838756,-500.0,0.00024657,5]
[329912495,1718827838766,-500.0,0.00024657,5]
[329912496,1718827838775,-500.0,0.00024657,5]
[329912497,1718827838784,-404.91930414,0.00024657,5]
[329912498,1718827838794,-356.46094243,0.00024657,5]
[329912499,1718827838803,-500.0,0.00024657,5]
[329912500,1718827838812,-500.0,0.00024657,5]
[329912501,1718827838821,-500.0,0.00024657,5]
[329912502,1718827838830,-500.0,0.00024657,5]
[329912503,1718827838839,-500.0,0.00024657,5]
[329912504,1718827838848,-500.0,0.00024657,5]
[329912505,1718827838857,-511.91616808,0.00024657,5]
[329912506,1718827838867,-500.0,0.00024657,5]
[329912507,1718827838877,-503.74567156,0.00024657,5]
[329912508,1718827838886,-500.0,0.00024657,5]
[329912509,1718827838895,-500.0,0.00024657,5]
[329912510,1718827838904,-500.0,0.00024657,5]
[329912511,1718827838913,-500.0,0.00024657,5]
[329912512,1718827838922,-500.0,0.00024657,5]
[329912513,1718827838932,-500.0,0.00024657,5]
[329912514,1718827838941,-987.52,0.00024657,5]
[329912515,1718827838951,-500.0,0.00024657,5]
[329912516,1718827838960,-500.0,0.00024657,5]
[329912517,1718827838970,-877.18,0.00024657,5]
[329912518,1718827838980,-500.0,0.00024657,5]
[329912519,1718827838990,-2595.6,0.00024657,5]
[329912520,1718827839000,-500.0,0.00024657,5]
[329912521,1718827839009,-500.0,0.00024657,5]
[329912522,1718827839018,-436.18131857,0.00024657,5]
[329912523,1718827839029,-500.0,0.00024657,5]
[329912524,1718827839038,-500.0,0.00024657,5]
[329912525,1718827839048,-500.0,0.00024657,5]
[329912526,1718827839059,-500.0,0.00024657,5]
[329912527,1718827839069,-500.0,0.00024657,5]
[329912528,1718827839079,-500.0,0.00024657,5]
[329912529,1718827839088,-500.51405895,0.00024657,5]
[329912530,1718827839098,-500.0,0.00024657,5]
[329912531,1718827839109,-500.0,0.00024657,5]
[329912532,1718827839119,-500.0,0.00024657,5]
[329912533,1718827839129,-500.0,0.00024657,5]
[329912534,1718827839139,-475.80295938,0.00024657,5]
[329912535,1718827839152,-258.94767295,0.00024657,5]
[329912536,1718827839168,-500.0,0.00024657,5]
[329912537,1718827839178,-500.0,0.00024657,5]
[329912538,1718827839187,-500.0,0.00024657,5]
[329912539,1718827839199,-500.0,0.00024657,5]
[329912540,1718827839209,-500.0,0.00024657,5]
[329912541,1718827839219,-156.27991408,0.00024657,5]
[329912542,1718827839229,-500.0,0.00024657,5]
[329912543,1718827839240,-500.0,0.00024657,5]
[329912544,1718827839251,-500.0,0.00024657,5]
[329912545,1718827839260,-500.0,0.00024657,5]
[329912546,1718827839271,-500.0,0.00024657,5]
[329912547,1718827839281,-549.42442425,0.00024657,5]
[329912548,1718827839290,-500.0,0.00024657,5]
[329912549,1718827839298,-500.0,0.00024657,5]
[329912550,1718827839308,-500.0,0.00024657,5]
[329912551,1718827839317,-500.0,0.00024657,5]
[329912552,1718827839328,-500.0,0.00024657,5]
[329912553,1718827839338,-500.0,0.00024657,5]
[329912554,1718827839347,-502.37686446,0.00024657,5]
[329912555,1718827839357,-500.0,0.00024657,5]
[329912556,1718827839367,-246.572714,0.00024657,5]
[329912557,1718827839376,-500.0,0.00024657,5]
[329912558,1718827839386,-500.0,0.00024657,5]
[329912559,1718827839395,-500.0,0.00024657,5]
[329912560,1718827839405,-500.0,0.00024657,5]
[329912561,1718827839414,-500.0,0.00024657,5]
[329912562,1718827839424,-500.0,0.00024657,5]
[329912563,1718827839435,-500.0,0.00024657,5]
[329912564,1718827839445,-500.0,0.00024657,5]
[329912565,1718827839454,-500.0,0.00024657,5]
[329912566,1718827839464,-500.0,0.00024657,5]
[329912567,1718827839474,-500.0,0.00024657,5]
[329912568,1718827839483,-500.0,0.00024657,5]
[329912569,1718827839493,-500.0,0.00024657,5]
[329912570,1718827839504,-500.0,0.00024657,5]
[329912571,1718827839514,-500.0,0.00024657,2]
[329912572,1718827839525,-500.0,0.00024657,5]
[329912573,1718827839535,-500.0,0.00024657,5]
[329912574,1718827839545,-500.0,0.00024657,5]
[329912575,1718827839555,-500.0,0.00024657,5]
[329912576,1718827839565,-500.0,0.00024657,5]
[329912577,1718827839576,-500.0,0.00024657,5]
[329912578,1718827839586,-503.09226001,0.00024657,5]
[329912579,1718827839596,-500.0,0.00024657,2]
[329912580,1718827839607,-500.0,0.00024657,5]
[329912581,1718827839617,-390.5733644,0.00024657,5]
[329912582,1718827839627,-3920.09,0.00024657,5]
[329912583,1718827839637,-500.0,0.00024657,5]
[329912584,1718827839648,-288.0,0.00024657,5]
[329912585,1718827839658,-250.0,0.00024657,5]
[329912586,1718827839668,-1014.04,0.00024657,5]
[329912587,1718827839678,-225.59366627,0.00024657,5]
[329912588,1718827839688,-500.0,0.00024657,5]
[329912589,1718827839699,-500.0,0.00024657,5]
[329912590,1718827839710,-500.0,0.00024657,5]
[329912591,1718827839721,-500.0,0.00024657,5]
[329912592,1718827839731,-500.0,0.00024657,5]
[329912593,1718827839741,-796.43,0.00024657,5]
[329912594,1718827839751,-382.6505583,0.00024657,5]
[329912595,1718827839761,-500.0,0.00024657,5]
[329912596,1718827839771,-500.0,0.00024657,5]
[329912597,1718827839780,-500.0,0.00024657,5]
[329912598,1718827839791,-500.0,0.00024657,5]
[329912599,1718827839801,-500.0,0.00024657,5]
[329912600,1718827839812,-500.0,0.00024657,5]
[329912601,1718827839822,-610.94275831,0.00024657,5]
[329912602,1718827839832,-500.0,0.00024657,5]
[329912603,1718827839842,-500.0,0.00024657,5]
[329912604,1718827839852,-500.0,0.00024657,5]
[329912605,1718827839862,-317.37280619,0.00024657,5]
[329912606,1718827839872,-500.0,0.00024657,5]
[329912607,1718827839881,-500.0,0.00024657,5]
[329912608,1718827839891,-500.0,0.00024657,5]
[329912609,1718827839900,-500.0,0.00024657,5]
[329912610,1718827839910,-1850.9,0.00024657,5]
[329912611,1718827839920,-500.0,0.00024657,5]
[329912612,1718827839930,-500.0,0.00024657,5]
[329912613,1718827839939,-500.0,0.00024657,5]